Cogmind - Beta 13 @@@ ROGUE MODE // 2024.04.04 @ 12:39:47 Player: kopo Result: Destroyed by G-34 Mercenary with Small Laser Performance ------------- Evolutions (0) 0 Regions Visited (1) 200 Robots Destroyed (30) 150 Value Destroyed (481) 481 Prototype IDs (2) 40 Alien Tech Used (0) 0 Bonus (0) 0 TOTAL SCORE: 871 Bonus ------- None Cogmind --------- Core Integrity 0/250 Matter 241/300 Energy 249/250 System Corruption 0% Temperature Cool (6) Movement Treading (240) Ox1 Location -10/Materials Parts ------- > --- POWER (1) -------- Ion Engine > --- PROPULSION (2) --- Light Treads Light Treads > --- UTILITY (2) ------ Small Storage Unit High-capacity Storage Unit > --- WEAPON (2) ------- Light Assault Rifle > --- INVENTORY (20) --- Ion Engine Light Nuclear Core Improved Heat Sink High-capacity Storage Unit Terrain Scan Processor Transport Network Coupler Light Assault Rifle Peak State ------------ > --- POWER ------------ Ion Engine > --- PROPULSION ------- Compact Wheel Compact Wheel > --- UTILITY ---------- High-capacity Storage Unit Improved Terrain Scanner > --- WEAPON ----------- Assault Rifle Assault Rifle > --- INVENTORY -------- Ion Engine Light Nuclear Core Light Treads Light Treads Light Treads Improved Heat Sink Small Storage Unit High-capacity Storage Unit Terrain Scan Processor Transport Network Coupler Light Assault Rifle [Rating: 10] Favorites ----------- Power Ion Engine Engine Ion Engine Propulsion Light Treads Treads Light Treads Wheel Compact Wheel Utility High-capacity Storage Unit Device Seismic Detector Storage High-capacity Storage Unit Weapon Assault Rifle Ballistic Gun Assault Rifle Build | -11 -10 ------- Run | Yrd Mat Slots Evolved . | . . Power . | . . Propulsion . | . . Utility . | . . Weapon . | . . Parts Attached 22 | 7 15 Power 3 | 1 2 Engine 3 | 1 2 Core . | . . Reactor . | . . Propulsion 6 | 2 4 Treads 4 | 2 2 Leg . | . . Wheel 2 | . 2 Hover . | . . Flight . | . . Utility 9 | 2 7 Device 3 | 1 2 Storage 6 | 1 5 Processor . | . . Hackware . | . . Protection . | . . Artifact . | . . Weapon 4 | 2 2 Energy Gun . | . . Energy Cannon . | . . Ballistic Gun 4 | 2 2 Ballistic Cannon . | . . Launcher . | . . Special Weapon . | . . Impact Weapon . | . . Slashing Weapon . | . . Piercing Weapon . | . . Special Melee Weapon . | . . Unidentified Prototypes . | . . Parts Lost 7 | . 7 Power 1 | . 1 Propulsion 1 | . 1 Utility 2 | . 2 Weapon 3 | . 3 Highest Loss Streak 2 | . 2 To Critical Strikes . | . . Average Slot Usage (%) 97 | . 97 Engine 13 | . 13 Treads 19 | . 19 Wheel 8 | . 8 Device 13 | . 13 Storage 14 | . 14 Ballistic Gun 27 | . 27 Naked Turns . | . . Heaviest Build 52 | 15 52 Greatest Support 40 | 40 40 Greatest Overweight (x) 1 | . 1 Average Overweight (x) . | . . Largest Inventory Capacity 20 | 8 20 Average Capacity 15 | 7 17 Most Carried 13 | 5 13 Average Carried 7 | 3 8 Final Capacity 20 | 8 20 Final Carried 7 | 4 7 Class Distribution -------------------- 94% | Mutant 5% | Scavenger-Mutant Dominant Class ---------------- Mutant | -10/Materials Resources | -11 -10 ----------- Run | Yrd Mat Matter Collected 782 | 299 483 Remotely . | . . Salvage Created 1033 | 57 976 Parts 76 | 12 64 Haulers Intercepted 1 | . 1 Recyclers Shooed 4 | 1 3 Parts Field Recycled . | . . Retrieved Matter . | . . Parts Self-Destructed . | . . Prevented . | . . Kills | -11 -10 ------- Run | Yrd Mat Combat Hostiles Destroyed 12 | . 12 Guns 12 | . 12 Classes Destroyed 8 | 1 7 Worker 6 | . 6 Builder 2 | . 2 Tunneler 3 | 3 . Hauler 1 | . 1 Recycler 4 | . 4 Watcher 2 | . 2 Swarmer 2 | . 2 Grunt 10 | . 10 Best Kill Streak 5 | 3 5 Combat Bots Only 2 | . 2 Max Kills in Single Turn 1 | 1 1 Gunslinging . | . . Exploded . | . . Melee . | . . Uniques/NPCs Destroyed . | . . Combat | -11 -10 -------- Run | Yrd Mat Hostile Shots Fired 132 | . 132 Missed 24 | . 24 Damage Taken 1165 | . 1165 Core 261 | . 261 Absorbed by Shields . | . . Regen/Repaired (Parts) 48 | . 48 Core Remaining (%) 100 | 100 . Volleys Fired 94 | 8 86 Largest 2 | 2 2 Hottest 40 | 40 40 Shots Fired 179 | 16 163 Gun 179 | 16 163 Cannon . | . . Launcher . | . . Special . | . . Kinetic 179 | 16 163 Thermal . | . . Explosive . | . . Electromagnetic . | . . Robot Hit Streak 17 | 9 17 Robot Miss Streak 6 | 1 6 Penetration Max . | . . Secondary Targets 1 | . 1 Max Gunslinging Chain 1 | . 1 Shots Hit Robots 123 | 11 112 Core Hits 48 | 4 44 Critical Kills 1 | . 1 Critical Parts Destroyed 1 | . 1 Critical Strikes 2 | . 2 Destroy 2 | . 2 Melee Attacks . | . . Impact . | . . Slashing . | . . Piercing . | . . Sneak Attacks . | . . Combat Hostiles . | . . Follow-up Attacks . | . . Damage Inflicted 1444 | 138 1306 Guns 1444 | 138 1306 Cannons . | . . Explosions . | . . Melee . | . . Ramming . | . . Kinetic 1444 | 138 1306 Thermal . | . . Explosive . | . . Electromagnetic . | . . Impact . | . . Slashing . | . . Piercing . | . . Highest Corruption . | . . Average Corruption . | . . Corruption Purged . | . . Corruption Blocked . | . . Overload Shots . | . . Overflow Damage . | . . Projectiles . | . . Explosions . | . . Melee . | . . Knockbacks . | . . Impact . | . . Kinetic . | . . Secondary . | . . Self-Inflicted Damage . | . . Shots . | . . Rammed . | . . Targets Rammed . | . . Kicked . | . . Crushed . | . . Highest Temperature 12 | . 12 Average Temperature 4 | . 4 Received Heat Transfer 501 | . 501 Siege Activations . | . . Robots Corrupted . | . . Combat Hostiles . | . . Parts Fried . | . . Impact Corruptions . | . . Robots Melted . | . . Combat Hostiles . | . . Parts Melted . | . . Heat Transferred . | . . Parts Sabotaged . | . . Parts Stolen . | . . Parts Stripped . | . . Power Chain Reactions . | . . Alert | -11 -10 ------- Run | Yrd Mat Peak Influence 335 | 15 335 Initial 9 | . 9 Average 90 | 5 104 Maximum Alert Level 1 | . 1 Low Security (%) 88 | 100 86 Level 1 11 | . 13 Level 2 . | . . Level 3 . | . . Level 4 . | . . Level 5 . | . . High Security . | . . Max Security . | . . Squads Dispatched 3 | . 3 Investigation 2 | . 2 Extermination . | . . Reinforcement 1 | . 1 Assault . | . . Garrison . | . . Intercept . | . . Searches Triggered . | . . Construction Impeded . | . . Haulers Reinforced . | . . Active Scanning Responses . | . . Cargo Convoy Interrupts . | . . Stealth | -11 -10 --------- Run | Yrd Mat Distress Signals 3 | . 3 Communications Jammed . | . . Distress Signals . | . . Times Spotted 27 | . 27 Peak Tracking Total 5 | . 5 Tactical Retreats 4 | . 4 Traps | -11 -10 ------- Run | Yrd Mat Traps Triggered 1 | . 1 Indirectly . | . . Trap Hack Attempts . | . . Triggered . | . . Disarmed . | . . Reprogrammed . | . . Reused . | . . Traps Extracted . | . . Installed . | . . Triggered . | . . Machines | -11 -10 ---------- Run | Yrd Mat Machines Disabled . | . . Max in Single Turn . | . . Machines Repaired . | . . Machines Dismantled . | . . Machines Sabotaged . | . . Overloaded Fab Kills . | . . Hacking | -11 -10 --------- Run | Yrd Mat Machines Accessed 4 | . 4 Terminals 2 | . 2 Fabricators . | . . Repair Stations 1 | . 1 Recycling Units 1 | . 1 Scanalyzers . | . . Garrison Access . | . . Total Hacks 13 | . 13 Successful 8 | . 8 Failed 5 | . 5 Catastrophic 2 | . 2 Database Lockouts . | . . Manual . | . . Terminals 6 | . 6 Fabricators . | . . Repair Stations 4 | . 4 Recycling Units 3 | . 3 Scanalyzers . | . . Garrison Access . | . . Terminal Hacks 2 | . 2 Prototype ID Bank 1 | . 1 Unreport Threat 1 | . 1 Fabricator Hacks . | . . Repair Station Hacks 4 | . 4 Scan Component 2 | . 2 Repair 2 | . 2 Recycling Unit Hacks 2 | . 2 Recycle Component 1 | . 1 Process 1 | . 1 Scanalyzer . | . . Garrison Access Hacks . | . . Unauthorized Hacks . | . . Terminals . | . . Fabricators . | . . Repair Stations . | . . Recycling Units . | . . Scanalyzers . | . . Garrison Access . | . . Data Cores Recovered . | . . Used . | . . Hacking Detections 3 | . 3 Full Trace Events 2 | . 2 Feedback Events . | . . Feedback Blocked . | . . Robot Schematics Acquired . | . . Robots Built . | . . Authchips . | . . Time . | . . Total Robot Build Rating . | . . Part Schematics Acquired . | . . Parts Built . | . . Authchips . | . . Time . | . . Total Part Build Rating . | . . Parts Repaired 2 | . 2 Time 52 | . 52 Parts Recycled 1 | . 1 Recycled Matter 173 | . 173 Retrieved Matter . | . . Retrieved Components . | . . Parts Scanalyzed . | . . Part Schematics Acquired . | . . Parts Damaged . | . . Bothacking | -11 -10 ------------ Run | Yrd Mat Used RIF Installer . | . . Robots Hacked . | . . Non-combat . | . . Combat . | . . Robot Hacks Applied . | . . Relay Couplers Released . | . . Fabnet Peak Effective % . | . . Robots Rewired . | . . Allies Hacked . | . . Hacks Repelled . | . . Allies | -11 -10 -------- Run | Yrd Mat Total Allies . | . . Largest Group . | . . Highest-Rated Group . | . . Highest-Rated Ally . | . . Total Orders . | . . Ally Attacks . | . . Total Damage . | . . Kills . | . . Allies Corrupted . | . . Allies Melted . | . . Intel | -11 -10 ------- Run | Yrd Mat Robot Analysis Total . | . . Derelict Logs Recovered . | . . Drone Launches . | . . Drone Recoveries . | . . Exploration | -11 -10 ------------- Run | Yrd Mat Turns Passed 834 | 118 716 Spaces Moved 295 | 58 237 Core 15 | 15 . Treads 178 | 43 135 Legs . | . . Wheels 102 | . 102 Hover . | . . Flight . | . . Fastest Speed 50 | 50 115 Average Speed 155 | 131 161 Slowest Speed 240 | 160 240 Overloaded Moves . | . . Propulsion Burnouts . | . . Robots Hopped . | . . Cave-ins Triggered . | . . Exploration Rate (%) 21 | 4 38 Regions Visited 1 Branch Regions . Pre-discovered Areas . | . . Known Exits Taken . | . . Unknown Exits Taken 1 | 1 . Scrap Searched . | . . Spaces Dug . | . . Terrain Destroyed . | . . Melee . | . . Projectile . | . . AOE . | . . Terrain Rammed . | . . Walls Destroyed . | . . Machines Disabled . | . . Actions | -11 -10 --------- Run | Yrd Mat Total 503 | 84 419 Wait 60 | 1 59 Move 294 | 57 237 Hop . | . . Pick Up 26 | 11 15 Fast Attach . | . . Attach 18 | 7 11 Detach 4 | . 4 Swap 4 | . 4 Drop 3 | . 3 Fire 94 | 8 86 Melee . | . . Ram . | . . Kick . | . . Crush . | . . Escape Stasis . | . . Rewire . | . . Trap . | . . Miscellaneous . | . . Route ------- -11/Scrapyard -10/Materials (discovered 2 exits: [*Mat] / [Sub]) History --------- Turn | Location | Event 37 | -11/Scrapyard | Discovered new exit (range 15) 119 | -11/Scrapyard | Entered Materials 317 | -10/Materials | Build established: Mutant 492 | -10/Materials | Core integrity fell below 50% 627 | -10/Materials | Discovered new exit (range 15) 665 | -10/Materials | Core integrity fell below 20% 692 | -10/Materials | Discovered new exit (range 15) 750 | -10/Materials | Repaired Lgt. Treads 776 | -10/Materials | Repaired Ion Engine 835 | -10/Materials | Destroyed by G-34 Mercenary with Small Laser Last Messages --------------- >>Repair Cancelling repair: Lgt. Treads. Repairing Ion Engine... ETC: 26 00750_ ALERT: Suspicious activity at Repair Station M001. Dispatching Investigation squad. 00759_ Acquired Lgt. Treads. 00770_ Dropped Com. Wheel. 00771_ Dropped Lgt. Treads. 00776_ Repair station completes Ion Engine repairs. 00778_ Repair Station unresponsive. 00783_ Acquired Ion Engine. 00789_ K-01 Serf cleans the Recycling Unit. 00791_ R-06 Scavenger collects Com. Wheel. 00792_ K-01 Serf cleans the Recycling Unit. 00794_ R-06 Scavenger collects Lgt. Treads. 00797_ Imp. Terrain Scanner destroyed. 00806_ G-34 Mercenary destroyed. 00814_ K-01 Serf collects debris. 00829_ Lgt. Assault Rifle destroyed. Map ----- +----------------------------------------------------+ | ?????????????????????????????????? | | ?????????????????????????????????? | | ?????????????????????????????????? | | ?????????????????????????????????? | | ?????????????????????????????????? | | ?????????????????????????????????? | | ?????????????????????????????????? | | ?????????????????????????????????? | | ?????????????????????????????????? | | ?????????????????????????????????? | | ?????????????????????????????????? | | ?????????????????????????????????? | | ?????????????????????????????????? | | ?????????????????????????????????? | | ???????????#??? ??????????#? ???? | | ??????????????# #####???????????? | | #?????????????# ????#?????? | | ??????? ??????# ??????????? | | ???????????#??# #????#?????? | | ?#???? ???????# #??? #?????? | | ?######+####### ##?? #??""?? | | ? #?? #?????? | | #?? #?????# | | #?? #?????? | | ###g####### | | """ """ """ """ # @ # | | ! """ """ """ """ # # | | """ """ """ """ # ! # | | #! """ # | | *+% """ # | | * = =#=" " """ # | | ######!% ###" "####### # "R" # | | ?????#!%*###"Y"##????# # """ # | | ?????#[=*###"""#????## ########### | | ####?# ############# #?#???????? | | ### ## ##??????#?? | | T < ## ??? ??#??? | | ### ####???# ?#??? | | # ##?#### ######### #???#??#?????? | | # #?????? ????#?????????????????? | | # #?????? ##?????????????????#???? | | # #???#??##?#?????????????????#??? | | # #?????????#